Cogmind - Beta 10.2 @@@ ROGUE MODE // 2021.06.10 @ 13:02:57 Player: Exp. Geonium Core Result: Destroyed by 8R-AWN with 8R-AWN's Boregun Performance ------------- Evolutions (0) 0 Regions Visited (3) 600 Robots Destroyed (5) 25 Value Destroyed (32) 32 Prototype IDs (23) 460 Alien Tech Used (0) 0 Bonus (231) 231 TOTAL SCORE: 1348 Bonus ------- Aligned with FarCom 300 Friendly Fire -69 Cogmind --------- Core Integrity 0/250 Matter 168/300 Energy 58/100 System Corruption 11% Temperature Cool (0) Movement Treading (220) Ox3 Location -10/Exiles Parts ------- > --- POWER (1) -------- (None) > --- PROPULSION (2) --- Light Treads > --- UTILITY (2) ------ High-capacity Storage Unit High-capacity Storage Unit > --- WEAPON (2) ------- (None) > --- INVENTORY (20) --- Light Ion Engine Light Treads Aluminum Leg Aluminum Leg Wheel Wheel Compact Wheel Humpback Humpback Beam Cannon Light Assault Rifle Light Assault Rifle Plasma Cutter Plasma Cutter Plasma Cutter Peak State ------------ > --- POWER ------------ Light Ion Engine > --- PROPULSION ------- Wheel Compact Wheel > --- UTILITY ---------- High-capacity Storage Unit High-capacity Storage Unit > --- WEAPON ----------- Assault Rifle Light Assault Rifle > --- INVENTORY -------- Light Ion Engine Light Treads Light Treads Light Treads Aluminum Leg Aluminum Leg Wheel Small Storage Unit Beam Cannon Light Assault Rifle Light Assault Rifle Light Assault Rifle Plasma Cutter Plasma Cutter Plasma Cutter Plasma Cutter [Rating: 9] Favorites ----------- Power Light Ion Engine Engine Light Ion Engine Propulsion Wheel Treads Light Treads Wheel Wheel Utility High-capacity Storage Unit Storage High-capacity Storage Unit Weapon Assault Rifle Energy Gun EM Pulse Gun Ballistic Gun Assault Rifle Special Weapon Plasma Cutter Build | -11 -10 -10 -10 ------- Run | Scr Mat Min Exi Slots Evolved . | . . . . Power . | . . . . Propulsion . | . . . . Utility . | . . . . Weapon . | . . . . Parts Attached 19 | 5 4 5 5 Power 1 | . . 1 . Engine 1 | . . 1 . Core . | . . . . Reactor . | . . . . Propulsion 10 | 4 . 4 2 Treads 6 | 2 . 2 2 Leg . | . . . . Wheel 4 | 2 . 2 . Hover . | . . . . Flight . | . . . . Utility 3 | 1 2 . . Device . | . . . . Storage 3 | 1 2 . . Processor . | . . . . Hackware . | . . . . Protection . | . . . . Artifact . | . . . . Weapon 5 | . 2 . 3 Energy Gun 1 | . . . 1 Energy Cannon . | . . . . Ballistic Gun 3 | . 2 . 1 Ballistic Cannon . | . . . . Launcher . | . . . . Special Weapon 1 | . . . 1 Impact Weapon . | . . . . Slashing Weapon . | . . . . Piercing Weapon . | . . . . Special Melee Weapon . | . . . . Unidentified Prototypes . | . . . . Parts Lost 7 | . . . 7 Power 1 | . . . 1 Propulsion 1 | . . . 1 Utility . | . . . . Weapon 5 | . . . 5 Highest Loss Streak 7 | . . . 7 Average Slot Usage (%) 94 | . 77 97 98 Engine 10 | . . 11 13 Treads 2 | . . 3 3 Wheel 25 | . 28 24 24 Storage 27 | . 25 28 28 Ballistic Gun 26 | . 24 28 27 Naked Turns . | . . . . Heaviest Build 70 | 4 67 70 70 Greatest Support 40 | 40 26 26 40 Greatest Overweight (x) 2 | . 2 2 2 Average Overweight (x) 1 | . . 2 1 Largest Inventory Capacity 20 | 6 20 20 20 Average Capacity 18 | 5 13 20 20 Most Carried 20 | 4 11 17 20 Average Carried 14 | 2 8 14 17 Final Capacity 20 | 6 20 20 20 Final Carried 17 | 4 11 17 17 Class Distribution -------------------- 82% | Hauler-Mutant 17% | Mutant Dominant Class ---------------- Mutant | -10/Materials Hauler-Mutant | -10/Mines Hauler-Mutant | -10/Exiles Resources | -11 -10 -10 -10 ----------- Run | Scr Mat Min Exi Matter Collected 311 | 250 . 61 . Remotely . | . . . . Salvage Created 90 | . . 90 . Parts 11 | . . 11 . Haulers Intercepted . | . . . . Recyclers Shooed 1 | . . 1 . Parts Field Recycled . | . . . . Retrieved Matter . | . . . . Parts Self-Destructed . | . . . . Prevented . | . . . . Kills | -11 -10 -10 -10 ------- Run | Scr Mat Min Exi Combat Hostiles Destroyed 3 | . . 3 . Guns 3 | . . 3 . Classes Destroyed 2 | . . 2 . Worker 2 | . . 2 . Swarmer 3 | . . 3 . Best Kill Streak 3 | . . 3 . Combat Bots Only 3 | . . 3 . Max Kills in Single Turn 1 | . . 1 . Gunslinging . | . . . . Exploded . | . . . . Melee . | . . . . Uniques/NPCs Destroyed . | . . . . Combat | -11 -10 -10 -10 -------- Run | Scr Mat Min Exi Damage Taken 1151 | . 130 142 879 Core 263 | . 56 16 191 Absorbed by Shields . | . . . . Core Remaining (%) 100 | 100 . . . Volleys Fired 27 | . . 16 11 Largest 2 | . . 2 2 Hottest 40 | . . 40 40 Shots Fired 48 | . . 32 16 Gun 47 | . . 32 15 Cannon . | . . . . Launcher . | . . . . Special 1 | . . . 1 Kinetic 46 | . . 32 14 Thermal 1 | . . . 1 Explosive . | . . . . Electromagnetic 1 | . . . 1 Robot Hit Streak 12 | . . 6 12 Robot Miss Streak 2 | . . 2 1 Penetration Max . | . . . . Secondary Targets 2 | . . 2 . Max Gunslinging Chain 1 | . . 1 . Shots Hit Robots 34 | . . 19 15 Core Hits 13 | . . 8 5 Critical Hits . | . . . . Critical Kills . | . . . . Critical Parts Destroyed . | . . . . Melee Attacks . | . . . . Impact . | . . . . Slashing . | . . . . Piercing . | . . . . Sneak Attacks . | . . . . Combat Hostiles . | . . . . Follow-up Attacks . | . . . . Damage Inflicted 306 | . . 174 132 Guns 305 | . . 174 131 Cannons . | . . . . Explosions . | . . . . Melee . | . . . . Ramming . | . . . . Kinetic 304 | . . 174 130 Thermal 1 | . . . 1 Explosive . | . . . . Electromagnetic 1 | . . . 1 Impact . | . . . . Slashing . | . . . . Piercing . | . . . . Highest Corruption 11 | . . . 11 Average Corruption 7 | . . . 7 Corruption Purged . | . . . . Effects 2 | . . . 2 Message Errors 1 | . . . 1 Targeting Errors 1 | . . . 1 Overload Shots . | . . . . Overflow Damage . | . . . . Projectiles . | . . . . Explosions . | . . . . Melee . | . . . . Knockbacks . | . . . . Impact . | . . . . Kinetic . | . . . . Secondary . | . . . . Self-Inflicted Damage . | . . . . Shots . | . . . . Rammed . | . . . . Targets Rammed . | . . . . Kicked . | . . . . Crushed . | . . . . Highest Temperature . | . . . . Average Temperature . | . . . . Received Heat Transfer 72 | . 72 . . Siege Activations . | . . . . Robots Corrupted . | . . . . Combat Hostiles . | . . . . Parts Fried . | . . . . Impact Corruptions . | . . . . Robots Melted . | . . . . Combat Hostiles . | . . . . Parts Melted . | . . . . Heat Transferred 9 | . . . 9 Parts Sabotaged . | . . . . Parts Stolen . | . . . . Parts Stripped . | . . . . Power Chain Reactions . | . . . . Missiles Intercepted . | . . . . Alert | -11 -10 -10 -10 ------- Run | Scr Mat Min Exi Peak Influence 85 | . 15 85 . Initial 5 | . . 5 . Average 43 | . 5 73 . Maximum Alert Level . | . . . . Low Security (%) 100 | 100 100 100 . Level 1 . | . . . . Level 2 . | . . . . Level 3 . | . . . . Level 4 . | . . . . Level 5 . | . . . . High Security . | . . . . Max Security . | . . . . Squads Dispatched 3 | . 3 . . Investigation 2 | . 2 . . Extermination . | . . . . Reinforcement 1 | . 1 . . Assault . | . . . . Garrison . | . . . . Intercept . | . . . . Construction Impeded . | . . . . Haulers Reinforced . | . . . . Stealth | -11 -10 -10 -10 --------- Run | Scr Mat Min Exi Distress Signals . | . . . . Communications Jammed . | . . . . Distress Signals . | . . . . Times Spotted 15 | . 4 3 8 Peak Tracking Total 9 | . 3 3 9 Tactical Retreats 1 | . 1 . . Traps | -11 -10 -10 -10 ------- Run | Scr Mat Min Exi Traps Triggered 1 | . 1 . . Indirectly . | . . . . Trap Hack Attempts . | . . . . Triggered . | . . . . Disarmed . | . . . . Reprogrammed . | . . . . Reused . | . . . . Traps Extracted . | . . . . Installed . | . . . . Triggered . | . . . . Machines | -11 -10 -10 -10 ---------- Run | Scr Mat Min Exi Machines Disabled . | . . . . Max in Single Turn . | . . . . Machines Sabotaged . | . . . . Garrisons Compromised . | . . . . Overloaded Fab Kills . | . . . . Fab Network Shutdowns . | . . . . Hacking | -11 -10 -10 -10 --------- Run | Scr Mat Min Exi Machines Accessed 3 | . 2 . 1 Terminals 2 | . 2 . . Fabricators . | . . . . Repair Stations . | . . . . Recycling Units . | . . . . Scanalyzers . | . . . . Garrison Access . | . . . . Total Hacks 5 | . 4 . 1 Successful 1 | . . . 1 Failed 4 | . 4 . . Catastrophic 1 | . 1 . . Database Lockouts . | . . . . Manual 5 | . 4 . 1 Terminals 4 | . 4 . . Fabricators . | . . . . Repair Stations . | . . . . Recycling Units . | . . . . Scanalyzers . | . . . . Garrison Access . | . . . . Terminal Hacks 1 | . . . 1 EX-Prototype ID Bank 1 | . . . 1 Fabricator Hacks . | . . . . Repair Station Hacks . | . . . . Recycling Unit Hacks . | . . . . Scanalyzer . | . . . . Garrison Access Hacks . | . . . . Unauthorized Hacks . | . . . . Terminals . | . . . . Fabricators . | . . . . Repair Stations . | . . . . Recycling Units . | . . . . Scanalyzers . | . . . . Garrison Access . | . . . . Data Cores Recovered . | . . . . Used . | . . . . Hacking Detections 2 | . 2 . . Full Trace Events 1 | . 1 . . Feedback Events . | . . . . Feedback Blocked . | . . . . Robot Schematics Acquired . | . . . . Robots Built . | . . . . Matter . | . . . . Time . | . . . . Total Robot Build Rating . | . . . . Part Schematics Acquired . | . . . . Parts Built . | . . . . Matter . | . . . . Time . | . . . . Total Part Build Rating . | . . . . Parts Repaired . | . . . . Time . | . . . . Parts Recycled . | . . . . Recycled Matter . | . . . . Retrieved Matter . | . . . . Retrieved Components . | . . . . Parts Scanalyzed . | . . . . Part Schematics Acquired . | . . . . Parts Damaged . | . . . . Bothacking | -11 -10 -10 -10 ------------ Run | Scr Mat Min Exi Used RIF Installer . | . . . . Robots Hacked . | . . . . Non-combat . | . . . . Combat . | . . . . Robot Hacks Applied . | . . . . Relay Couplers Released . | . . . . Robots Rewired . | . . . . Allies Hacked . | . . . . Hacks Repelled . | . . . . Allies | -11 -10 -10 -10 -------- Run | Scr Mat Min Exi Total Allies . | . . . . Largest Group . | . . . . Highest-Rated Group . | . . . . Highest-Rated Ally . | . . . . Total Orders . | . . . . Ally Attacks . | . . . . Total Damage . | . . . . Kills . | . . . . Allies Corrupted . | . . . . Allies Melted . | . . . . Intel | -11 -10 -10 -10 ------- Run | Scr Mat Min Exi Robot Analysis Total . | . . . . Derelict Logs Recovered . | . . . . Drone Launches . | . . . . Drone Recoveries . | . . . . Exploration | -11 -10 -10 -10 ------------- Run | Scr Mat Min Exi Turns Passed 931 | 63 138 267 463 Spaces Moved 731 | 47 125 177 382 Core 2 | 2 . . . Treads 28 | 15 . . 13 Legs . | . . . . Wheels 701 | 30 125 177 369 Hover . | . . . . Flight . | . . . . Fastest Speed 50 | 50 90 110 110 Average Speed 109 | 110 99 110 112 Slowest Speed 180 | 160 110 110 180 Overloaded Moves . | . . . . Propulsion Burnouts . | . . . . Robots Hopped . | . . . . Cave-ins Triggered . | . . . . Exploration Rate (%) 34 | 3 30 38 65 Regions Visited 3 Branch Regions 2 Pre-discovered Areas . | . . . . Known Exits Taken . | . . . . Unknown Exits Taken 3 | 1 1 1 . Scrap Searched . | . . . . Spaces Dug . | . . . . Terrain Destroyed . | . . . . Melee . | . . . . Projectile . | . . . . AOE . | . . . . Terrain Rammed . | . . . . Walls Destroyed . | . . . . Machines Disabled . | . . . . Actions | -11 -10 -10 -10 --------- Run | Scr Mat Min Exi Total 810 | 55 136 218 401 Wait 17 | . 2 15 . Move 728 | 46 124 176 382 Hop . | . . . . Pick Up 18 | 4 6 6 2 Fast Attach 7 | 3 3 1 . Attach 3 | . . . 3 Detach . | . . . . Swap 9 | 2 1 4 2 Drop 1 | . . . 1 Fire 27 | . . 16 11 Melee . | . . . . Ram . | . . . . Kick . | . . . . Crush . | . . . . Escape Stasis . | . . . . Rewire . | . . . . Trap . | . . . . Miscellaneous . | . . . . Route ------- -11/Scrapyard -10/Materials -10/Mines -10/Exiles History --------- Turn | Location | Event 6 | -11/Scrapyard | Discovered new exit (range 16) 64 | -11/Scrapyard | Entered Materials 184 | -10/Materials | Discovered new exit (range 16) 202 | -10/Materials | Entered Mines 350 | -10/Mines | Deemed a non-threat by the Exiles lab entrance 350 | -10/Mines | Discovered new exit (range 5) 469 | -10/Mines | Entered Exiles 472 | -10/Exiles | Build established: Hauler-Mutant 496 | -10/Exiles | Met 8R-AWN 515 | -10/Exiles | Met EX-HEX 545 | -10/Exiles | Met EX-BIN 559 | -10/Exiles | Aligned with FarCom system 560 | -10/Exiles | Given EX-Vault access code 585 | -10/Exiles | Opened EX-Vault 631 | -10/Exiles | Warned to stay clear of 0b10 Research branches 662 | -10/Exiles | Met EX-DEC 903 | -10/Exiles | Attacked by the Exiles 916 | -10/Exiles | Core integrity fell below 50% 923 | -10/Exiles | Core integrity fell below 20% 929 | -10/Exiles | System corruption reached 10% 932 | -10/Exiles | Destroyed by 8R-AWN with 8R-AWN's Boregun Last Messages --------------- 00925_ Machine disabled. 00926_ Penetrated by HV Slug. 00926_ HV Slug penetrates Earth. 00926_ HV Slug penetrates as-12762. 00926_ as-12762 suffers critical hit. 00926_ as-12762 destroyed. 00926_ HV Slug penetrates Earth. 00927_ System corrupted: EM Pulse Gun targeting data glitched. 00928_ >CV RK&LSD P4NH16%9XD 00928_ Penetrated by HV Slug. 00928_ HV Slug penetrates Earth. 00928_ EM Pulse Gun destroyed. 00928_ System corrupted by crushing effect (+2). 00929_ Lgt. Treads destroyed. 00930_ Penetrated by HV Slug. 00930_ HV Slug penetrates Earth. 00930_ Penetrated by HV Slug. 00930_ HV Slug penetrates Earth. 00932_ Plasma Cutter destroyed. 00932_ Penetrated by HV Slug. Map ----- +----------------------------------------------------+ | """#?????????????????????????????????????????????? | | """#?????????????????????????????????????????????? | | """#?????????????????????????????????????????????? | | """#?????????????????????????????????????????????? | | """#?????????????????????????????????????????????? | | """#?????????????????????????????????????????????? | | """#?????????????????????????????????????????????? | | """#?????????????????????????????????????????????? | | """#?????????????????????????????????????????????? | | """#?????????????????????????????????????????????? | | """"?????????????????????????????????????????????? | | """#?????????????????????????????????????????????? | | """"?????????????????????????????????????????????? | | #?????????????????????????????????????????????? | | """#?????????????????????????????????????????????? | | ####?????????????????????????????????????????????? | | ??????????????????????????????????##?????????????? | | ?????????????????????????????????# #?????????????? | | ????????????????????????????????# #??????????????? | | ##########?????????????????????# #???????????????? | | """""""""##??????????????????## #????????????? ? | | " """ """"##???????????##### # #?????????????# # | | "" " #???????????# # #?????????????# # | | " """#???????????# #?????????????# | | " "#???????????#;;;;#??????????????# | | " "##?????????## @%#??????????????## | | ""###???????#"aga#?????????????## #? | | """#??????## %aa##????????????# #? | | "#????### ###????????### #?? | | ##???# ########## #?? | | ##?## a #""""## #??? | | ### * ##?? | | ## * #?? | | #### ##? | | ""#?#"""""#### ## | | #"""##?#######??#### * | | ######??????????????##### | | ##???????????????????????### | | " ##??????????????????????????### | | """ ""#?????????????????????????????### | | ""#" "##??????????????????????????????#" | | ""?##"""""""##???????????????????????????????#### | | ""???#########???????????????????????????????????# | | ?????????????????????????????????????????????????# | | ?????????????????????????????????????????????????? | | ?????????????????????????????????????????????????? | | ?????????????????????????????????????????????????? | | ?????????????????????????????????????????????????? | | ?????????????????????????????????????????????????? | | ?????????????????????????????????????????????????? | +----------------------------------------------------+ Best States ------------- Heat Dissipation 25 Energy Generation 10 Energy Capacity 125 Matter Stores 300 Matter Capacity 300 Sight Range 16 Terrain Scan Density 10 Evasion (%) 42 Recoil Reduction 2 Item Schematics ----------------- None Robot Schematics ------------------ None Fabricated ------------ Nothing Alien Tech Used ----------------- None Achievements -------------- None Challenges ------------ None Game ------ Seed NovaArcCloak Manual? 0 Play Time 00:09:44 Cumulative 99.5 hours Start 2021.06.10 @ 12:51:27 End 2021.06.10 @ 13:02:57 Sessions 1 Manual Loads 0 Difficulty Rogue Special Mode None Game No. 155 Rogue 155 Adventurer 0 Explorer 0 Win Type - Total 3 Types 2/0/0/1/0/0/0/0/0 Lore% 48 Gallery% 66 Achievement% 56 Wizard Run 0 Options --------- ASCII 0 Keyboard 0 Movement Numpad Keybinds 0 Fullscreen 1 Font 18/Terminus Map View 76x50 Tactical HUD 1 Map Filters NONE Filters NONE Steam 1 RUN: c3c861ba-bc86-4a9c-8c41-27f0197e0c73